[Event "Reykjavik Open 2022"]
[Site "Reykjavik"]
[Date "2022.04.09"]
[Round "5.43"]
[White "Green, Per"]
[Black "Cherniack, Alex"]
[Result "1/2-1/2"]
[ECO "A31"]
[WhiteElo "1946"]
[BlackElo "2213"]
[Annotator "TA"]
[PlyCount "116"]
[EventDate "2022.04.06"]
[EventCountry "ISL"]
[SourceTitle "playchess.com"]
[Source "ChessBase"]
[SourceQuality "1"]
[TimeControl "40/5400+30:1800+30"]

{[%evp 15,116,32,11,18,34,38,45,16,27,22,22,28,15,17,16,22,35,44,45,13,31,25,60,15,77,85,125,133,147,102,96,86,245,270,265,80,138,137,133,98,97,96,103,33,36,26,37,37,116,109,109,111,113,110,150,97,124,102,144,101,137,111,108,112,162,110,176,112,141,106,98,72,175,21,78,78,78,78,78,78,78,58,85,0,8,2,2,2,2,0,0,0,0,0,0,0,0,0,0,0,0,0,0]} 1. c4 {[%emt 0:00:15]} c5 {[%emt 0:00:13]} 2. g3 {[%emt 0:00:43]} Nc6 {[%emt 0:00:16]} 3. Bg2 {[%emt 0:00:20]} g6 {[%emt 0:00:08]} 4. Nc3 {[%emt 0:00:14]} Bg7 {[%emt 0:00:11]} 5. Nf3 {[%emt 0:00:29]} d6 {[%emt 0:00:15]} 6. O-O {[%emt 0:00:50]} Nf6 {[%emt 0:00:09]} 7. d4 {[%emt 0:01:05]} cxd4 {[%emt 0:00:10]} 8. Nxd4 {[%emt 0:00:10]} Bd7 {[%emt 0:00:03]} 9. Nxc6 {[%emt 0:01:03] A31: Symmetrical English: 2 Nf3 Nf6 3 d4.} Bxc6 {[%emt 0:02:33]} 10. e4 {[%emt 0:00:15]} O-O {[%emt 0:02:15] 10...h5 deserves study.} 11. Qe2 {[%emt 0:04:48] White is slightly better.} Nd7 {[%emt 0:08:24]} 12. Bd2 {[%emt 0:04:16]} a6 {[%emt 0:05:17]} 13. Rac1 {[%emt 0:10:26]} b5 {[%emt 0:12:53] [#]} 14. b3 $146 {[%emt 0:01:22]} ({Predecessor:} 14. cxb5 axb5 15. a3 Ne5 16. Bf4 Qb6 17. Nd5 Bxd5 18. exd5 b4 19. Be3 {1-0 (36) Danielian,E (2466)-Golubenko,V (2278) Khanty-Mansiysk 2010}) 14... bxc4 {[%emt 0:05:14]} 15. Qxc4 {[%emt 0:00:46]} Ne5 {[%emt 0:06:25]} 16. Qe2 {[%emt 0:01:03]} Bb7 {[%emt 0:02:45]} 17. f4 {[%emt 0:04:53]} Nc6 {[%emt 0:03:50]} 18. Be3 {[%emt 0:00:19]} Rc8 {[%emt 0:05:20]} 19. Na4 {[%emt 0:03:38]} Qa5 {[%emt 0:02:47]} (19... Nd4 $11 20. Qd2 e5) 20. Qf2 $16 {[%emt 0:07:45] aiming for Nb6.} Nb4 {[%emt 0:06:16]} 21. Qd2 {[%emt 0:02:28] Inhibits Nd3.} Qb5 {[%emt 0:02:46][%cal Ob5d3]} 22. Rfd1 {[%emt 0:04:34]} Rxc1 {[%emt 0:10:29]} 23. Rxc1 {[%emt 0:00:39]} Rc8 $2 {[%emt 0:00:21]} (23... a5 $16) 24. Rxc8+ $18 {[%emt 0:02:05]} Bxc8 {[%emt 0:00:03] [#]} 25. Bf1 $2 {[%emt 0:03:37]} (25. Nb6 $1 $18 {[%cal Rb6c8] and the rest is easy.} Bb7 26. Bf1) 25... Qb7 {[%emt 0:00:31]} (25... Qb8 $142) 26. Nb6 $16 {[%emt 0:02:36]} Nc6 {[%emt 0:03:06]} 27. Nxc8 {[%emt 0:05:12]} Qxc8 {[%emt 0:00:01]} 28. Bc4 {[%emt 0:00:40]} Bf8 {[%emt 0:05:37]} 29. Qd5 {[%emt 0:09:08] &Bianco is more active.} ({White should try} 29. Qd3 $16) 29... e6 $14 {[%emt 0:00:11]} 30. Qd2 {[%emt 0:00:20]} Qb7 {[%emt 0:01:11]} 31. Bf2 {[%emt 0:06:07]} Nb4 {[%emt 0:04:49]} (31... a5 $14) 32. a3 $36 {[%emt 0:04:16][%mdl 2048] White is really pushing.} Nc6 {[%emt 0:01:51]} 33. b4 {[%emt 0:01:04] Against a5} Nb8 {[%emt 0:01:22]} 34. Qd3 {[%emt 0:01:22]} Be7 {[%emt 0:01:37]} 35. h3 {[%emt 0:03:53]} (35. Bd4 $142) 35... Bf8 {[%emt 0:02:24]} 36. Kh2 {[%emt 0:00:26]} Be7 {[%emt 0:00:47]} 37. Be3 {[%emt 0:01:03]} Bf8 {[%emt 0:00:11]} 38. g4 {[%emt 0:05:38]} Qc7 {[%emt 0:01:34]} 39. Kg2 {[%emt 0:00:53]} (39. Bxa6 $6 Nxa6 40. Qxa6 Qc2+ 41. Kg3 Qxe4 $15) 39... Qb7 {[%emt 0:02:02]} (39... Bg7 $16 40. Bd2 (40. Bxa6 Nxa6 41. Qxa6 Qc2+ 42. Kf3 Qd1+ 43. Kg3 Bd4 $11) 40... Qc6) 40. Kg1 {[%emt 0:00:00]} (40. f5 $18 exf5 41. gxf5) 40... Be7 {[%emt 0:00:00] [#]} (40... Qc7 $16 {was called for.} 41. Kg2 Bg7) 41. Bf2 {[%emt 0:08:59]} (41. f5 $1 $18 {[%cal Rf5e6]} Qd7 42. Qc3) 41... Bf8 {[%emt 0:05:03]} 42. Bh4 {[%emt 0:07:36]} Qc7 {[%emt 0:02:02]} 43. f5 {[%emt 0:02:11]} Nc6 {[%emt 0:10:03]} (43... d5 $16 44. exd5 exf5) 44. Bg3 $2 {[%emt 0:01:19] This bishop pair is nice.} ({Don't take} 44. Bxa6 $6 Ne5 45. Qe3 Nc4 $16) (44. fxe6 $18 Ne5 45. exf7+ Kg7 46. Qf1) 44... Ne5 {[%emt 0:04:44]} (44... gxf5 $11 45. exf5 exf5) 45. Bxe5 {[%emt 0:00:20]} dxe5 {[%emt 0:00:07]} 46. fxe6 {[%emt 0:01:12]} fxe6 {[%emt 0:00:52]} 47. Bxe6+ {[%emt 0:02:13]} Kg7 {[%emt 0:00:28] Hoping for ...Qb6+.} 48. Bc4 {[%emt 0:04:01]} a5 {[%emt 0:00:51]} 49. b5 {[%emt 0:09:47]} ({White should play} 49. Qd5 $16 {And now g5 would win.} Qd6 50. bxa5) 49... Qc5+ {[%emt 0:01:24] The position is equal.} 50. Kg2 {[%emt 0:00:24]} Qxa3 {[%emt 0:01:39]} 51. Qxa3 {[%emt 0:02:35]} Bxa3 $11 {[%emt 0:00:05][%mdl 4096] Endgame KB-KB} 52. Kf3 {[%emt 0:00:20]} Bc5 {[%emt 0:01:20]} 53. Bb3 {[%emt 0:00:16]} g5 {[%emt 0:00:23]} 54. Ke2 {[%emt 0:00:11]} Kf6 {[%emt 0:00:03]} 55. Kd3 {[%emt 0:00:03]} Ke7 {[%emt 0:00:04]} 56. Kc4 {[%emt 0:00:02]} Kd6 {[%emt 0:00:04]} 57. Ba4 {[%emt 0:00:18]} h6 {[%emt 0:00:17]} 58. Bb3 {[%emt 0:00:06]} Bb6 {[%emt 0:00:13] Weighted Error Value: White=0.23 (precise) /Black=0.22 (precise)} 1/2-1/2

[Event "Reykjavik Open 2022"]
[Site "Reykjavik"]
[Date "2022.04.09"]
[Round "5.44"]
[White "Jaksland, Tim"]
[Black "Ragnarsson, Johann"]
[Result "1-0"]
[ECO "B13"]
[WhiteElo "2201"]
[BlackElo "1919"]
[Annotator "NA RC"]
[PlyCount "65"]
[EventDate "2022.04.06"]
[EventCountry "ISL"]
[SourceTitle "playchess.com"]
[Source "ChessBase"]
[SourceQuality "1"]
[TimeControl "40/5400+30:1800+30"]

1. e4 {[%emt 0:00:03]} c6 {[%emt 0:00:13]} 2. d4 {[%emt 0:00:06]} d5 {[%emt 0:00:08]} 3. exd5 {[%emt 0:00:35]} cxd5 {[%emt 0:00:10]} 4. Bd3 {[%emt 0:00:07]} Nc6 {[%emt 0:01:34]} 5. c3 {[%emt 0:00:16]} Qc7 {[%emt 0:00:59]} 6. Ne2 {[%emt 0:01:07]} Bg4 {[%emt 0:00:15]} 7. O-O {[%emt 0:00:51]} e6 {[%emt 0:00:11]} 8. Qe1 {[%emt 0:00:54]} Bd6 {[%emt 0:08:18]} 9. f3 {[%emt 0:02:40]} Bh5 {[%emt 0:04:57]} 10. Qh4 {[%emt 0:00:47]} Bg6 {[%emt 0:10:47]} 11. Bxg6 {[%emt 0:00:28]} fxg6 {[%emt 0:00:07]} 12. Bf4 {[%emt 0:13:46]} Nge7 {[%emt 0:07:35]} 13. Bxd6 {[%emt 0:08:05]} Qxd6 {[%emt 0:00:40]} 14. Qf4 {[%emt 0:01:05]} Nf5 {[%emt 0:05:46]} 15. Qxd6 {[%emt 0:17:42]} Nxd6 {[%emt 0:00:22]} 16. Nd2 {[%emt 0:00:46]} O-O {[%emt 0:02:37]} 17. Rae1 {[%emt 0:01:33]} e5 {[%emt 0:09:32]} 18. dxe5 {[%emt 0:23:20]} Nxe5 {[%emt 0:00:11]} 19. Nc1 {[%emt 0:12:26]} Nec4 {[%emt 0:03:05]} 20. Nxc4 {[%emt 0:01:18]} dxc4 {[%emt 0:00:03]} 21. Rd1 {[%emt 0:05:09]} Nf5 {[%emt 0:00:46]} 22. Rfe1 {[%emt 0:00:35]} Rad8 {[%emt 0:00:12]} 23. Kf2 {[%emt 0:00:40]} Kf7 {[%emt 0:02:28]} 24. Ne2 {[%emt 0:03:48]} Rfe8 {[%emt 0:05:57]} 25. g4 {[%emt 0:00:42]} Ne7 {[%emt 0:05:25]} 26. Nd4 {[%emt 0:01:26]} Nd5 {[%emt 0:08:18]} 27. Rxe8 {[%emt 0:00:52]} Rxe8 {[%emt 0:06:13]} 28. Nb5 {[%emt 0:00:27]} Re5 {[%emt 0:00:03]} 29. Nd6+ {[%emt 0:00:34]} Kf6 {[%emt 0:09:06]} 30. Nxc4 {[%emt 0:00:16]} Nxc3 {[%emt 0:00:06]} 31. bxc3 {[%emt 0:00:39]} Rc5 {[%emt 0:00:03]} 32. Nd6 {[%emt 0:01:00]} Ke5 {[%emt 0:00:55]} 33. Ne4 {[%emt 0:00:58]} 1-0

[Event "Reykjavik Open 2022"]
[Site "Reykjavik"]
[Date "2022.04.09"]
[Round "5.45"]
[White "Player, Edmund C"]
[Black "Gudmundsson, Gunnar Erik"]
[Result "1-0"]
[ECO "B31"]
[WhiteElo "2196"]
[BlackElo "1906"]
[Annotator "TA"]
[PlyCount "93"]
[EventDate "2022.04.06"]
[EventCountry "ISL"]
[SourceTitle "playchess.com"]
[Source "ChessBase"]
[SourceQuality "1"]
[TimeControl "40/5400+30:1800+30"]

{[%evp 13,93,22,27,17,28,25,27,14,16,0,29,22,39,0,0,0,0,0,4,0,154,151,159,141,140,135,189,181,231,189,197,200,218,208,212,193,185,183,183,180,175,169,178,170,270,262,269,269,281,281,275,226,218,241,232,221,243,248,248,246,1085,1085,1060,928,1049,1010,1094,866,965,851,1160,1160,1185,1129,1072,956,1810,1791,2212,1593,1333,1268]} 1. e4 {[%emt 0:00:01]} c5 {[%emt 0:00:10]} 2. Nf3 {[%emt 0:00:05]} Nc6 {[%emt 0:00:18]} 3. Bb5 {[%emt 0:00:07]} g6 {[%emt 0:00:13]} 4. Bxc6 {[%emt 0:00:07]} dxc6 {[%emt 0:00:26]} 5. d3 {[%emt 0:00:07]} Bg7 {[%emt 0:00:40]} 6. h3 {[%emt 0:00:07]} e5 {[%emt 0:00:58]} 7. Be3 {[%emt 0:02:12]} b6 {[%emt 0:02:15]} 8. a4 {[%emt 0:02:38][%cal Oa4a5] B31: Sicilian: 2...Nc6 3 Bb5 g6.} a5 {[%emt 0:02:52]} 9. Nbd2 {[%emt 0:01:09]} Qc7 {[%emt 0:01:11]} 10. Nc4 {[%emt 0:01:57] White has an edge.} Be6 {[%emt 0:02:20]} 11. O-O {[%emt 0:02:15]} Ne7 {[%emt 0:06:18]} (11... Bxc4 $5 12. dxc4 Nf6 $11) 12. Nfd2 {[%emt 0:25:01]} O-O {[%emt 0:04:14]} 13. b4 {[%emt 0:10:24]} axb4 {[%emt 0:13:32][%cal Oe7d5]} 14. a5 $1 {[%emt 0:01:00]} bxa5 {[%emt 0:01:59]} 15. Bxc5 {[%emt 0:00:16] [#]} Rfe8 $146 {[%emt 0:07:47][%cal Oe7d5]} ({Predecessor:} 15... Rfd8 16. Bb6 Qd7 17. Bxd8 Qxd8 18. Qb1 f5 19. Qb3 Kh8 20. Ra4 fxe4 21. Nxe4 Nd5 {1-0 (33) Derraugh,G (2169)-Xie,B (2050) Chess.com INT 2020}) 16. Ra4 {[%emt 0:10:45]} Qb8 $2 {[%emt 0:11:05] [#] White stays focused until the end.} (16... Nd5 $1 $11 17. Qa1 (17. exd5 cxd5 18. Nd6 Reb8 $17) 17... Nf4) 17. Qa1 $1 $16 {[%emt 0:06:52]} ({Much less strong is} 17. Rxa5 $6 Rxa5 18. Nxa5 Qb5 $14) ({Don't go for} 17. Nxa5 $2 Qb5 18. Qa1 Qxc5 $19) 17... Qb5 {[%emt 0:06:48]} 18. Rxa5 {[%emt 0:13:45] &Bianco is more active.} Rxa5 {[%emt 0:00:28]} 19. Qxa5 {[%emt 0:00:07]} Bxc4 {[%emt 0:04:41]} (19... Qxa5 $16 20. Nxa5 Ra8) 20. Nxc4 $18 {[%emt 0:00:12] Hoping for Qa7.} Nc8 {[%emt 0:02:21] Inhibits Qa7.} (20... Qxa5 $142 21. Nxa5 Ra8) 21. Qxb4 {[%emt 0:01:36]} Qxb4 {[%emt 0:01:06]} 22. Bxb4 {[%emt 0:00:02]} Bf8 {[%emt 0:00:40]} 23. Bxf8 {[%emt 0:04:01]} Kxf8 {[%emt 0:00:10][%mdl 4096] Endgame KRN-KRN} 24. Rb1 {[%emt 0:00:11]} f6 {[%emt 0:03:51]} 25. Na5 {[%emt 0:04:37]} Ne7 {[%emt 0:01:01]} 26. Rb6 {[%emt 0:00:28]} Rc8 {[%emt 0:01:17]} 27. Kf1 {[%emt 0:00:06]} Kf7 {[%emt 0:01:31]} 28. Ke2 {[%emt 0:01:29]} f5 {[%emt 0:01:33]} (28... Ke6 {was necessary.} 29. Ke3 Kd6) 29. Nc4 {[%emt 0:01:26] [#] Threatens to win with Nd6+.} Ke6 {[%emt 0:01:14] Against Nd6} 30. Rb7 {[%emt 0:03:34]} fxe4 {[%emt 0:02:29]} 31. dxe4 {[%emt 0:00:02]} Re8 {[%emt 0:02:32]} 32. Ra7 {[%emt 0:00:57]} g5 {[%emt 0:00:48]} 33. g3 {[%emt 0:04:08]} h5 {[%emt 0:01:45]} 34. Rc7 {[%emt 0:01:36]} h4 {[%emt 0:02:00]} 35. gxh4 {[%emt 0:01:25]} gxh4 {[%emt 0:00:06]} 36. Ke3 {[%emt 0:00:21]} Rc8 $2 {[%emt 0:01:49]} (36... Rf8 37. Nxe5 Nf5+ 38. exf5+ Kxe5 39. Rxc6 Kxf5) 37. Rxc8 {[%emt 0:00:24] White is clearly winning.} Nxc8 {[%emt 0:00:02] KN-KN} 38. Kf3 {[%emt 0:00:08]} Ne7 {[%emt 0:01:51]} 39. Kg4 {[%emt 0:00:06]} Kf6 {[%emt 0:02:14]} 40. Kxh4 {[%emt 0:00:00]} Ng6+ {[%emt 0:00:00]} 41. Kg4 {[%emt 0:00:58]} Nf4 {[%emt 0:00:42]} 42. h4 {[%emt 0:01:32][%cal Bh3h4,Bh4h5][%mdl 32]} Ne2 {[%emt 0:01:10]} 43. h5 {[%emt 0:03:37]} Nd4 {[%emt 0:00:22]} 44. Ne3 {[%emt 0:06:04]} Ne2 {[%emt 0:02:26]} 45. Kh4 {[%emt 0:05:30]} Nc3 {[%emt 0:02:12]} 46. Ng4+ {[%emt 0:00:46]} Kg7 {[%emt 0:00:51]} 47. f3 {[%emt 0:00:32] Weighted Error Value: White=0.09 (flawless) /Black=0.22 (precise)} 1-0

[Event "Reykjavik Open 2022"]
[Site "Reykjavik"]
[Date "2022.04.09"]
[Round "5.46"]
[White "Schultze, Joerg-Martin"]
[Black "Coursaget, Nicolas"]
[Result "0-1"]
[ECO "D13"]
[WhiteElo "1932"]
[BlackElo "2185"]
[Annotator "NA RC"]
[PlyCount "71"]
[EventDate "2022.04.06"]
[EventCountry "ISL"]
[SourceTitle "playchess.com"]
[Source "ChessBase"]
[SourceQuality "1"]
[TimeControl "40/5400+30:1800+30"]

1. d4 {[%emt 0:00:03]} d5 {[%emt 0:01:44]} 2. c4 {[%emt 0:00:13]} c6 {[%emt 0:00:06]} 3. cxd5 {[%emt 0:00:41]} cxd5 {[%emt 0:00:02]} 4. Nc3 {[%emt 0:00:10]} Nf6 {[%emt 0:00:05]} 5. Nf3 {[%emt 0:01:07]} Nc6 {[%emt 0:01:06]} 6. Bf4 {[%emt 0:00:58]} e6 {[%emt 0:01:34]} 7. e3 {[%emt 0:01:22]} a6 {[%emt 0:00:10]} 8. Bd3 {[%emt 0:03:14]} Be7 {[%emt 0:01:35]} 9. Rc1 {[%emt 0:02:28]} Bd7 {[%emt 0:01:34]} 10. O-O {[%emt 0:09:48]} b5 {[%emt 0:13:11]} 11. Ne5 {[%emt 0:04:27]} Qb6 {[%emt 0:09:08]} 12. a4 {[%emt 0:18:56]} Nxe5 {[%emt 0:14:25]} 13. Bxe5 {[%emt 0:02:30]} O-O {[%emt 0:03:52]} 14. axb5 {[%emt 0:06:35]} axb5 {[%emt 0:00:51]} 15. Qb3 {[%emt 0:00:20]} b4 {[%emt 0:02:15]} 16. Ra1 {[%emt 0:01:18]} Ra5 {[%emt 0:07:13]} 17. Na4 {[%emt 0:02:08]} Qa7 {[%emt 0:00:58]} 18. Bc2 {[%emt 0:04:13]} Bb5 {[%emt 0:06:11]} 19. Bxf6 {[%emt 0:06:29]} gxf6 {[%emt 0:00:58]} 20. e4 {[%emt 0:04:08]} Bxf1 {[%emt 0:11:07]} 21. Rxf1 {[%emt 0:00:38]} dxe4 {[%emt 0:02:59]} 22. Nc5 {[%emt 0:00:46]} Bxc5 {[%emt 0:04:04]} 23. dxc5 {[%emt 0:00:15]} Qxc5 {[%emt 0:00:32]} 24. Bxe4 {[%emt 0:00:35]} Qd4 {[%emt 0:04:42]} 25. Bf3 {[%emt 0:01:42]} Rc8 {[%emt 0:05:24]} 26. Bb7 {[%emt 0:03:22]} Rd8 {[%emt 0:02:47]} 27. h3 {[%emt 0:02:38]} Rc5 {[%emt 0:02:04]} 28. Ba6 {[%emt 0:02:20]} Qd2 {[%emt 0:01:02]} 29. Bc4 {[%emt 0:01:22]} Rd4 {[%emt 0:01:15]} 30. Qg3+ {[%emt 0:00:25]} Rg5 {[%emt 0:01:05]} 31. Qb8+ {[%emt 0:00:08]} Kg7 {[%emt 0:00:17]} 32. b3 {[%emt 0:00:10]} Qc3 {[%emt 0:00:17]} 33. Rb1 {[%emt 0:03:53]} Qxh3 {[%emt 0:00:40]} 34. g3 {[%emt 0:00:55]} Rh4 {[%emt 0:00:55]} 35. Qb7 {[%emt 0:03:07]} Qh2+ {[%emt 0:00:27]} 36. Kf1 {[%emt 0:00:19]} 0-1

[Event "Reykjavik Open 2022"]
[Site "Reykjavik"]
[Date "2022.04.09"]
[Round "5.47"]
[White "Mai, Alexander Oliver"]
[Black "Haraldsson, Haraldur"]
[Result "1-0"]
[ECO "B45"]
[WhiteElo "2207"]
[BlackElo "1936"]
[Annotator "NA RC"]
[PlyCount "47"]
[EventDate "2022.04.06"]
[EventCountry "ISL"]
[SourceTitle "playchess.com"]
[Source "ChessBase"]
[SourceQuality "1"]
[TimeControl "40/5400+30:1800+30"]

1. e4 {[%emt 0:00:04]} c5 {[%emt 0:00:07]} 2. Nf3 {[%emt 0:00:05]} e6 {[%emt 0:00:10]} 3. d4 {[%emt 0:00:08]} cxd4 {[%emt 0:00:06]} 4. Nxd4 {[%emt 0:00:05]} Nf6 {[%emt 0:00:08]} 5. Nc3 {[%emt 0:00:06]} Nc6 {[%emt 0:00:09]} 6. Nxc6 {[%emt 0:01:31]} bxc6 {[%emt 0:00:20]} 7. e5 {[%emt 0:00:24]} Nd5 {[%emt 0:00:38]} 8. Ne4 {[%emt 0:00:16]} f5 {[%emt 0:09:53]} 9. exf6 {[%emt 0:02:22]} Nxf6 {[%emt 0:00:25]} 10. Nd6+ {[%emt 0:00:23]} Bxd6 {[%emt 0:00:24]} 11. Qxd6 {[%emt 0:00:04]} Qe7 {[%emt 0:07:27]} 12. Bf4 {[%emt 0:03:07]} Ne4 {[%emt 0:13:04]} 13. Qxe7+ {[%emt 0:02:36]} Kxe7 {[%emt 0:00:07]} 14. f3 {[%emt 0:01:52]} Nf6 {[%emt 0:01:04]} 15. O-O-O {[%emt 0:03:06]} d5 {[%emt 0:01:21]} 16. Bd3 {[%emt 0:03:34]} Kf7 {[%emt 0:10:13]} 17. Rhe1 {[%emt 0:02:08]} Re8 {[%emt 0:02:44]} 18. Re3 {[%emt 0:03:33]} g6 {[%emt 0:04:21]} 19. Rde1 {[%emt 0:02:27]} Bb7 {[%emt 0:06:30]} 20. Bd6 {[%emt 0:07:08]} Nd7 {[%emt 0:04:35]} 21. h4 {[%emt 0:02:59]} c5 {[%emt 0:01:58]} 22. Bb5 {[%emt 0:01:07]} Nb6 {[%emt 0:05:51]} 23. Bxe8+ {[%emt 0:01:21]} Rxe8 {[%emt 0:00:08]} 24. Bxc5 {[%emt 0:00:31]} 1-0

[Event "Reykjavik Open 2022"]
[Site "Reykjavik"]
[Date "2022.04.09"]
[Round "5.48"]
[White "Karason, Askell O"]
[Black "Hughes, Anthony"]
[Result "1-0"]
[ECO "D36"]
[WhiteElo "2186"]
[BlackElo "1873"]
[Annotator "NA RC"]
[PlyCount "83"]
[EventDate "2022.04.06"]
[EventCountry "ISL"]
[SourceTitle "playchess.com"]
[Source "ChessBase"]
[SourceQuality "1"]
[TimeControl "40/5400+30:1800+30"]

1. d4 {[%emt 0:00:04]} d5 {[%emt 0:00:00]} 2. c4 {[%emt 0:00:07]} e6 {[%emt 0:00:04]} 3. Nc3 {[%emt 0:00:11]} Nf6 {[%emt 0:00:07]} 4. cxd5 {[%emt 0:00:06]} exd5 {[%emt 0:00:04]} 5. Bg5 {[%emt 0:00:07]} c6 {[%emt 0:00:16]} 6. e3 {[%emt 0:01:12]} h6 {[%emt 0:00:44]} 7. Bh4 {[%emt 0:00:07]} Be7 {[%emt 0:00:13]} 8. Qc2 {[%emt 0:00:07]} O-O {[%emt 0:00:25]} 9. Bd3 {[%emt 0:00:09]} Re8 {[%emt 0:00:15]} 10. Nge2 {[%emt 0:00:08]} a5 {[%emt 0:01:19]} 11. O-O {[%emt 0:02:05]} b5 {[%emt 0:01:23]} 12. Rad1 {[%emt 0:02:06]} b4 {[%emt 0:04:58]} 13. Na4 {[%emt 0:01:09]} Ne4 {[%emt 0:02:11]} 14. Bxe4 {[%emt 0:01:53]} Bxh4 {[%emt 0:00:54]} 15. Bh7+ {[%emt 0:00:06]} Kh8 {[%emt 0:00:11]} 16. Bd3 {[%emt 0:02:25]} Ba6 {[%emt 0:08:08]} 17. Bxa6 {[%emt 0:03:32]} Rxa6 {[%emt 0:00:11]} 18. Qd3 {[%emt 0:03:18]} Ra7 {[%emt 0:01:05]} 19. Rc1 {[%emt 0:00:11]} Be7 {[%emt 0:01:54]} 20. Rc2 {[%emt 0:00:30]} Bd6 {[%emt 0:01:12]} 21. Ng3 {[%emt 0:02:42]} g6 {[%emt 0:03:52]} 22. Nc5 {[%emt 0:01:09]} h5 {[%emt 0:01:11]} 23. Rfc1 {[%emt 0:05:37]} Qg5 {[%emt 0:04:41]} 24. Nf1 {[%emt 0:00:40]} f5 {[%emt 0:06:02]} 25. f3 {[%emt 0:16:03]} Qf6 {[%emt 0:04:31]} 26. Rf2 {[%emt 0:06:43]} Qg5 {[%emt 0:18:07]} 27. Rfc2 {[%emt 0:01:42]} Qf6 {[%emt 0:00:07]} 28. b3 {[%emt 0:00:00]} h4 {[%emt 0:01:41]} 29. Qd1 {[%emt 0:00:00]} Bf8 {[%emt 0:00:44]} 30. Nd3 {[%emt 0:00:00]} Bd6 {[%emt 0:03:35]} 31. f4 {[%emt 0:00:00]} Rh7 {[%emt 0:01:30]} 32. Ne5 {[%emt 0:00:00]} Bxe5 {[%emt 0:00:25]} 33. dxe5 {[%emt 0:00:00]} Qe6 {[%emt 0:00:54]} 34. Nd2 {[%emt 0:00:00]} d4 {[%emt 0:02:47]} 35. exd4 {[%emt 0:00:00]} h3 {[%emt 0:01:19]} 36. Nf3 {[%emt 0:00:00]} Qd5 {[%emt 0:01:49]} 37. Ng5 {[%emt 0:00:00]} Rd7 {[%emt 0:04:24]} 38. Rd2 {[%emt 0:00:00]} Na6 {[%emt 0:06:01]} 39. Qe2 {[%emt 0:14:39]} Nc7 {[%emt 0:00:00]} 40. Qd3 {[%emt 0:00:00]} Nb5 {[%emt 0:00:00]} 41. Qxh3+ {[%emt 0:05:08]} Kg8 {[%emt 0:08:16]} 42. Rc5 {[%emt 0:00:43]} 1-0

[Event "Reykjavik Open 2022"]
[Site "Reykjavik"]
[Date "2022.04.09"]
[Round "5.49"]
[White "Vemparala, Nikash"]
[Black "De Coninck, Rafael"]
[Result "1-0"]
[ECO "C01"]
[WhiteElo "1998"]
[BlackElo "2119"]
[Annotator "NA RC"]
[PlyCount "73"]
[EventDate "2022.04.06"]
[EventCountry "ISL"]
[SourceTitle "playchess.com"]
[Source "ChessBase"]
[SourceQuality "1"]
[TimeControl "40/5400+30:1800+30"]

1. e4 {[%emt 0:00:02]} e6 {[%emt 0:00:09]} 2. d4 {[%emt 0:00:08]} d5 {[%emt 0:00:08]} 3. exd5 {[%emt 0:00:07]} exd5 {[%emt 0:00:11]} 4. Nf3 {[%emt 0:00:30]} c6 {[%emt 0:00:55]} 5. Bd3 {[%emt 0:00:31]} Bd6 {[%emt 0:00:21]} 6. O-O {[%emt 0:00:40]} Ne7 {[%emt 0:00:40]} 7. Re1 {[%emt 0:02:09]} O-O {[%emt 0:01:03]} 8. c3 {[%emt 0:07:42]} Bf5 {[%emt 0:02:36]} 9. Bg5 {[%emt 0:00:32]} f6 {[%emt 0:01:02]} 10. Bh4 {[%emt 0:00:55]} Bxd3 {[%emt 0:01:40]} 11. Qxd3 {[%emt 0:00:07]} Nd7 {[%emt 0:01:35]} 12. Bg3 {[%emt 0:02:31]} Bxg3 {[%emt 0:02:55]} 13. hxg3 {[%emt 0:00:14]} Re8 {[%emt 0:00:45]} 14. Nbd2 {[%emt 0:02:24]} Nf8 {[%emt 0:05:27]} 15. Nf1 {[%emt 0:10:56]} Qd7 {[%emt 0:02:05]} 16. Ne3 {[%emt 0:01:36]} Nc8 {[%emt 0:01:04]} 17. g4 {[%emt 0:02:04]} Ng6 {[%emt 0:03:57]} 18. g5 {[%emt 0:08:32]} fxg5 {[%emt 0:00:24]} 19. Nxg5 {[%emt 0:00:50]} Nd6 {[%emt 0:00:24]} 20. Qd1 {[%emt 0:13:16]} h6 {[%emt 0:02:49]} 21. Qc2 {[%emt 0:09:49]} Ne4 {[%emt 0:00:41]} 22. Nxe4 {[%emt 0:02:00]} Rxe4 {[%emt 0:00:19]} 23. c4 {[%emt 0:05:22]} Rae8 {[%emt 0:02:00]} 24. cxd5 {[%emt 0:00:54]} cxd5 {[%emt 0:00:09]} 25. Rac1 {[%emt 0:02:06]} Qe7 {[%emt 0:04:16]} 26. Qc7 {[%emt 0:07:48]} Qg5 {[%emt 0:00:23]} 27. Qd7 {[%emt 0:03:57]} Nf4 {[%emt 0:00:44]} 28. Rc8 {[%emt 0:01:08]} Rxe3 {[%emt 0:01:00]} 29. Rxe8+ {[%emt 0:00:16]} Kh7 {[%emt 0:00:08]} 30. g4 {[%emt 0:00:27]} Re6 {[%emt 0:01:19]} 31. R1xe6 {[%emt 0:05:27]} Qxg4+ {[%emt 0:00:11]} 32. Kf1 {[%emt 0:00:06]} Qg2+ {[%emt 0:01:11]} 33. Ke1 {[%emt 0:00:12]} Qg1+ {[%emt 0:00:25]} 34. Kd2 {[%emt 0:00:07]} Qxf2+ {[%emt 0:00:08]} 35. Kc3 {[%emt 0:00:22]} Qf1 {[%emt 0:01:03]} 36. Rh8+ {[%emt 0:00:37]} Kxh8 {[%emt 0:00:01]} 37. Re8+ {[%emt 0:00:05]} 1-0